bitfinex/quotes_ETHUSD_20251126
["timestamp","ask_amount","ask_price","bid_price","bid_amount"]
[1764199205416,0.31070223,3026.6,3026.5,0.006]
[1764199206625,0.31070223,3026.6,3026.5,3.3101467]
[1764199206823,0.31070223,3026.6,3026.5,4.56189608]
[1764199207695,0.31070223,3026.6,3026.5,0.003]
[1764199208415,0.31070223,3026.6,3026.5,3.3071467]
[1764199208802,0.31070223,3026.6,3026.5,0.003]
[1764199213112,0.002,3026.6,3026.5,0.003]
[1764199215117,0.002,3026.6,3026.5,0.006]
[1764199215509,0.002,3026.6,3026.5,0.003]
[1764199217096,0.002,3026.6,3026.0,6.61238532]
[1764199217296,0.002,3026.6,3026.1,0.73379794]
[1764199217703,0.77043117,3026.5,3025.9,3.30475727]
[1764199217915,0.30783117,3026.4,3025.9,3.30475727]
[1764199218121,0.30783117,3026.3,3025.9,3.30475727]
[1764199218294,0.4626,3026.5,3025.9,3.30475727]
[1764199218499,0.30784676,3026.4,3025.9,3.30475727]
[1764199218822,0.30784676,3026.3,3025.9,6.60955914]
[1764199219021,0.4626,3026.5,3025.9,6.60955914]
[1764199219022,0.4626,3026.5,3025.9,7.34025885]
[1764199219212,0.30787766,3026.4,3025.9,7.34025885]
[1764199219391,0.002,3026.6,3026.5,0.003]
[1764199219596,0.30987498,3026.6,3026.0,0.003]
[1764199219792,0.30787498,3026.5,3026.0,0.003]
[1764199220020,0.30787498,3026.4,3026.3,0.001]
[1764199220398,0.30787498,3026.4,3026.3,0.004]
[1764199221622,0.76887498,3026.4,3026.3,0.001]
[1764199221926,0.30787498,3026.4,3026.3,0.001]
[1764199222134,0.30787498,3026.4,3026.3,0.004]
[1764199222620,0.30787498,3026.4,3026.3,0.001]
[1764199224833,0.30787498,3026.4,3026.3,0.004]
[1764199225496,0.76887498,3026.4,3026.3,0.001]
[1764199225700,1.23147498,3026.4,3026.3,0.001]
[1764199227310,0.76887498,3026.4,3026.3,0.001]
[1764199228306,1.23147498,3026.4,3026.3,0.001]
[1764199228721,0.76887498,3026.4,3026.3,0.001]
[1764199229243,0.30787498,3026.4,3026.3,0.004]
[1764199233746,0.30787498,3026.4,3026.3,0.007]
[1764199235342,0.30787498,3026.4,3026.3,3.31136506]
[1764199235563,0.30787498,3026.4,3026.3,3.97294813]
[1764199238069,0.30987498,3026.4,3026.3,3.97294813]
[1764199238253,0.77087498,3026.4,3026.3,0.001]
[1764199238453,1.23347498,3026.4,3026.3,0.001]
[1764199239671,0.77087498,3026.4,3026.3,0.001]
[1764199239842,1.23347498,3026.4,3026.3,0.001]
[1764199241086,1.44247498,3026.4,3026.3,0.001]
[1764199248570,0.97987498,3026.4,3026.3,0.001]
[1764199248776,1.43257498,3026.4,3026.3,0.001]
[1764199249152,0.51887498,3026.4,3026.3,0.001]
[1764199249482,0.51887498,3026.4,3026.3,0.004]
[1764199249780,1.43157498,3026.4,3026.3,0.001]
[1764199254890,4.73583086,3026.4,3026.3,0.001]
[1764199255493,1.43157498,3026.4,3026.3,0.001]
[1764199255688,0.51887498,3026.4,3026.3,0.001]
[1764199256319,1.43157498,3026.4,3026.3,0.001]
[1764199258123,0.97887498,3026.4,3026.3,0.001]
[1764199258527,1.43157498,3026.4,3026.3,0.001]
[1764199262722,0.97887498,3026.4,3026.3,0.001]
[1764199263326,1.43157498,3026.4,3026.3,0.001]
[1764199264832,0.97887498,3026.4,3026.3,0.001]
[1764199265034,0.51887498,3026.4,3026.3,0.001]
[1764199265404,0.97887498,3026.4,3026.3,0.001]
[1764199265604,0.51887498,3026.4,3026.3,0.001]
[1764199267104,0.51887498,3026.4,3026.3,0.004]
[1764199268525,0.51887498,3026.4,3026.3,0.001]
[1764199268723,0.51887498,3026.4,3026.3,0.004]
[1764199268922,0.30987498,3026.4,3026.3,0.007]
[1764199269123,0.30987498,3026.4,3026.3,0.59789264]
[1764199269913,0.30987498,3026.4,3026.3,7.22541315]
[1764199270127,0.002,3026.4,3026.3,7.22541315]
[1764199270922,0.002,3026.4,3026.3,10.52977821]
[1764199271137,0.002,3026.8,3026.3,10.52977821]
[1764199271138,0.002,3026.8,3026.5,0.003]
[1764199271449,0.002,3026.8,3026.7,7.03602451]
[1764199271609,0.002,3026.8,3026.7,1.64149656]
[1764199271814,0.002,3026.8,3026.7,1.64449656]
[1764199272043,0.002,3026.8,3026.7,7.54642296]
[1764199272546,0.002,3026.8,3026.7,1.43249656]
[1764199272723,0.002,3026.8,3026.7,0.003]
[1764199273242,0.002,3026.8,3026.7,0.006]
[1764199275143,0.002,3026.8,3026.7,3.30992837]
[1764199275326,0.002,3026.8,3026.7,3.30392837]
[1764199275529,0.002,3026.8,3026.7,3.30692837]
[1764199275847,0.002,3026.8,3026.7,3.96802474]
[1764199277735,0.002,3026.8,3026.7,3.96502474]
[1764199278044,0.002,3026.8,3026.7,3.96802474]
[1764199282022,0.002,3026.8,3026.7,9.86995114]
[1764199282221,0.002,3026.8,3026.7,9.87295114]
[1764199284350,0.002,3026.8,3026.7,3.96802474]
[1764199288723,0.002,3026.8,3026.7,3.97102474]
[1764199289326,0.002,3026.8,3026.7,3.96802474]
[1764199294452,0.002,3026.8,3026.7,9.86995114]
[1764199294660,0.002,3026.8,3026.7,9.87295114]
[1764199296761,0.002,3026.8,3026.7,9.86995114]
[1764199297457,0.002,3026.8,3026.7,9.87295114]
[1764199298161,0.002,3026.8,3026.7,9.86995114]
[1764199303362,0.002,3026.8,3026.7,3.96502474]
[1764199303537,0.4804,3026.8,3026.7,3.96502474]
[1764199303733,0.9602,3026.8,3026.7,3.96502474]
[1764199304134,0.002,3026.8,3026.7,3.96502474]
[1764199305739,0.4951,3026.8,3026.7,3.96502474]
[1764199307571,0.80461393,3026.8,3026.7,3.96502474]
[1764199308166,0.002,3027.0,3026.8,1.13109811]
[1764199308357,0.002,3027.0,3026.9,0.003]
[1764199308554,0.002,3027.0,3026.9,0.006]
[1764199309244,0.002,3027.0,3026.9,0.99329212]
[1764199309671,0.002,3027.0,3026.9,4.06835897]
[1764199309951,0.002,3027.4,3027.2,1.13409811]
[1764199310164,1e-08,3027.7,3027.4,0.72559411]
[1764199310358,1e-08,3027.7,3027.6,7.03205634]
[1764199310760,1e-08,3027.7,3027.6,7.03505634]
[1764199312069,1e-08,3027.7,3027.6,10.33800256]
[1764199312253,1e-08,3027.7,3027.6,11.95271158]
[1764199315368,1e-08,3027.7,3027.6,12.16171158]
[1764199316874,1e-08,3027.7,3027.6,11.95271158]
[1764199317055,1e-08,3027.7,3027.6,12.16171158]
[1764199319459,1e-08,3027.7,3027.6,12.29393009]
[1764199320374,1e-08,3027.7,3027.6,12.08193009]
[1764199320581,1e-08,3027.7,3027.6,12.29093009]
[1764199321485,1e-08,3027.7,3027.6,12.28793009]
[1764199321657,0.49310001,3027.7,3027.6,12.28793009]
[1764199321970,0.49310001,3027.7,3027.6,5.64324935]
[1764199322176,0.96250001,3027.7,3027.6,3.51194622]
[1764199322378,0.96250001,3027.7,3027.6,4.23754033]
[1764199323583,0.96250001,3027.7,3027.6,4.02854033]
[1764199323794,0.96250001,3027.7,3027.6,4.23754033]
[1764199325682,0.96250001,3027.7,3027.6,4.02854033]
[1764199326054,0.96250001,3027.7,3027.6,4.23754033]
[1764199327585,0.96250001,3027.7,3027.6,4.02854033]
[1764199327885,0.96250001,3027.7,3027.6,4.23754033]
[1764199329462,0.96250001,3027.7,3027.5,3.30400921]
[1764199329791,0.96250001,3027.7,3027.5,0.001]
[1764199329792,0.9652,3027.6,3027.5,0.001]
[1764199330289,0.9652,3027.6,3027.5,3.30405532]
[1764199331503,0.9652,3027.6,3027.5,0.001]
[1764199344298,0.9639,3027.6,3027.5,0.001]
[1764199344508,1e-08,3027.7,3027.5,0.004]
[1764199344914,1e-08,3027.7,3027.6,0.003]
[1764199345284,0.49480001,3027.7,3027.5,0.001]
[1764199345485,0.49480001,3027.7,3027.5,0.61179582]
[1764199345787,0.98290001,3027.7,3027.5,0.61179582]
[1764199345979,0.98290001,3027.7,3027.6,3.30294622]
[1764199347210,1e-08,3027.7,3027.6,3.30294622]
[1764199347382,1e-08,3027.7,3027.6,9.20690445]
[1764199347582,1e-08,3027.7,3027.6,10.51907927]
[1764199347786,1e-08,3027.7,3027.6,4.61812104]
[1764199348014,0.49480001,3027.7,3027.6,4.61512104]
[1764199348714,1e-08,3027.7,3027.6,4.61512104]
[1764199350787,0.98290001,3027.7,3027.6,4.61512104]
[1764199351297,1e-08,3027.7,3027.6,4.61512104]
[1764199351506,1e-08,3027.7,3027.6,4.61812104]
[1764199351707,0.98290001,3027.7,3027.6,4.61512104]
[1764199355293,0.49480001,3027.7,3027.6,4.61512104]
[1764199355695,0.98290001,3027.7,3027.6,4.61512104]
[1764199355895,0.98290001,3027.7,3027.6,3.30294622]
[1764199361211,1e-08,3027.7,3027.6,3.30594622]
[1764199362223,0.98290001,3027.7,3027.6,3.30294622]
[1764199362996,0.98290001,3027.7,3027.5,0.001]
[1764199363209,0.9829,3027.6,3027.5,0.001]
[1764199364929,1e-08,3027.7,3027.5,0.001]
[1764199365221,1e-08,3027.7,3027.6,0.003]
[1764199366017,1e-08,3027.7,3027.5,1.01295625]
[1764199366207,0.48300001,3027.7,3027.5,1.01295625]
[1764199366422,1e-08,3027.7,3027.5,1.01295625]
[1764199368099,1e-08,3027.7,3027.6,3.30294622]
[1764199371328,1e-08,3027.7,3027.6,4.65424614]
[1764199371712,1e-08,3027.7,3027.6,10.55129725]
[1764199372500,0.94490001,3027.7,3027.6,4.65424614]
[1764199372925,0.48300001,3027.7,3027.6,4.65424614]
[1764199373424,0.48300001,3027.7,3027.6,3.30294622]
[1764199373594,1e-08,3027.7,3027.6,3.30594622]
[1764199375222,1e-08,3027.7,3027.6,9.19999733]
[1764199376134,0.48300001,3027.7,3027.6,3.30294622]
[1764199376622,1e-08,3027.7,3027.6,3.30294622]
[1764199376826,0.48300001,3027.7,3027.6,4.67514614]
[1764199377003,0.94490001,3027.7,3027.6,4.67514614]
[1764199377527,0.48300001,3027.7,3027.6,4.67514614]
[1764199377832,1e-08,3027.7,3027.6,4.67514614]
[1764199378008,1e-08,3027.7,3027.6,4.67814614]
[1764199378330,1e-08,3027.7,3027.6,4.68114614]
[1764199380003,1e-08,3027.7,3027.6,5.40674025]
[1764199380204,1e-08,3027.7,3027.6,17.19484247]
[1764199380405,1e-08,3027.7,3027.6,11.29779136]
[1764199380635,1e-08,3027.7,3027.6,11.30079136]
[1764199380926,1e-08,3027.7,3027.6,5.60974025]
[1764199381227,1e-08,3027.7,3027.6,5.61574025]
[1764199381439,1e-08,3027.7,3027.6,11.29479136]
[1764199381658,1e-08,3027.7,3027.6,11.50379136]
[1764199381804,1e-08,3027.7,3027.6,11.50679136]
[1764199385020,1e-08,3027.7,3027.6,11.50379136]
[1764199385743,1e-08,3027.7,3027.6,11.29479136]
[1764199385951,1e-08,3027.7,3027.6,11.50379136]
[1764199386447,0.48300001,3027.7,3027.6,5.60974025]
[1764199387232,0.48300001,3027.7,3027.6,11.50379136]
[1764199390754,1e-08,3027.7,3027.6,11.50379136]
[1764199392629,1e-08,3027.7,3027.6,11.50679136]
[1764199395032,1e-08,3027.7,3027.6,11.29779136]
[1764199395236,1e-08,3027.7,3027.6,11.50679136]
[1764199395633,1e-08,3027.7,3027.6,17.80934647]
[1764199396463,1e-08,3027.7,3027.6,21.61934647]
[1764199397034,1e-08,3027.7,3027.6,23.9931642]
[1764199398536,1e-08,3027.7,3027.6,21.61934647]
[1764199402568,1e-08,3027.7,3027.6,21.75156541]
[1764199403062,1e-08,3027.7,3027.6,15.6425143]
[1764199403252,0.96480001,3027.7,3027.6,3.30294622]
[1764199403833,0.96480001,3027.7,3027.6,4.02854033]
[1764199409462,1e-08,3027.7,3027.6,4.02854033]
[1764199409666,1e-08,3027.7,3027.6,4.03154033]
[1764199409867,1e-08,3027.7,3027.6,4.57928732]
[1764199410051,0.49870001,3027.7,3027.6,4.57928732]
[1764199410571,0.49870001,3027.7,3027.6,4.02854033]
[1764199410971,1e-08,3027.7,3027.6,4.02854033]
[1764199413069,1e-08,3027.7,3027.6,4.23654033]
[1764199414867,1e-08,3027.7,3027.6,4.23954033]
[1764199415250,1e-08,3027.7,3027.6,10.54209544]
[1764199415451,1e-08,3027.7,3027.6,12.51611466]
[1764199417072,1e-08,3027.7,3027.6,16.32611466]
[1764199417270,1e-08,3027.7,3027.6,16.4583336]
[1764199418261,1e-08,3027.7,3027.6,16.4553336]
[1764199418466,1e-08,3027.7,3027.6,10.56128249]
[1764199418651,1e-08,3027.7,3027.6,16.4553336]
[1764199419050,1e-08,3027.7,3027.6,16.4583336]
[1764199420589,1e-08,3027.7,3027.6,16.4553336]
[1764199420794,1e-08,3027.7,3027.6,10.56128249]
[1764199421552,1e-08,3027.7,3027.6,9.81255955]
[1764199421553,0.96480001,3027.7,3027.6,9.81255955]
[1764199421862,0.96480001,3027.7,3027.6,8.04654033]
[1764199425720,0.96480001,3027.7,3027.6,7.83854033]
[1764199426016,0.96480001,3027.7,3027.6,4.23654033]
[1764199427504,0.96480001,3027.7,3027.6,10.13059144]
[1764199428618,0.96480001,3027.7,3027.6,4.23654033]
[1764199430110,0.96480001,3027.7,3027.6,4.02854033]
[1764199430317,0.96480001,3027.7,3027.6,4.23654033]
[1764199431996,0.96480001,3027.7,3027.6,4.02854033]
[1764199432198,0.96480001,3027.7,3027.6,4.23654033]
[1764199433001,0.96480001,3027.7,3027.6,4.02854033]
[1764199433176,0.96480001,3027.7,3027.6,4.23654033]
[1764199433376,0.96480001,3027.7,3027.6,4.02854033]
[1764199438280,1e-08,3027.7,3027.6,4.02854033]
[1764199438483,1e-08,3027.7,3027.6,5.37493154]
[1764199440286,0.94940001,3027.7,3027.6,4.02854033]
[1764199440506,0.94940001,3027.7,3027.6,4.23654033]
[1764199441904,1e-08,3027.7,3027.6,4.23654033]
[1764199444103,1e-08,3027.7,3027.6,4.23954033]
[1764199444302,1e-08,3027.7,3027.6,5.58323154]
[1764199444613,1e-08,3027.7,3027.6,5.99173554]
[1764199444812,0.002,3027.8,3027.7,1.13109811]
[1764199445015,0.002,3028.1,3027.9,0.003]
[1764199445318,0.002,3028.1,3028.0,7.23542422]
[1764199445513,0.002,3028.1,3028.0,8.27220783]
[1764199446092,0.002,3028.5,3028.0,8.27220783]
[1764199446093,0.002,3028.5,3028.2,0.405504]
[1764199446418,0.002,3028.5,3028.3,7.03042422]
[1764199446613,0.002,3028.7,3028.4,1.13109811]
[1764199446913,0.002,3028.7,3028.6,7.02742422]
[1764199447115,0.002,3028.7,3028.6,7.98822366]
[1764199447283,0.002,3028.7,3028.6,7.99122366]
[1764199448015,0.002,3028.7,3028.6,11.5010793]
[1764199452721,0.002,3028.7,3028.6,11.2900793]
[1764199453024,0.002,3028.7,3028.6,11.2870793]
[1764199453199,0.4978,3028.7,3028.6,11.0895753]
[1764199453400,0.968,3028.7,3028.6,11.0895753]
[1764199453728,0.968,3028.7,3028.6,11.4950793]
[1764199454292,0.968,3028.7,3028.6,11.0895753]
[1764199455527,0.4978,3028.7,3028.6,11.0895753]
[1764199455733,0.9853,3028.7,3028.6,11.0895753]
[1764199456225,0.9853,3028.7,3028.3,9.90652452]
[1764199456391,0.4541,3028.4,3028.3,3.30215904]
[1764199456596,0.4541,3028.4,3028.3,4.23575315]
[1764199457052,0.9416,3028.4,3028.3,4.23575315]
[1764199461150,0.002,3028.7,3028.3,4.23575315]
[1764199461151,0.002,3028.7,3028.4,1.13109811]
[1764199461315,0.002,3028.7,3028.6,7.02742422]
[1764199461641,0.002,3028.7,3028.6,7.03042422]
[1764199463316,0.002,3028.7,3028.6,10.33227986]
[1764199464353,0.002,3028.9,3028.7,1.13109811]
[1764199464648,0.002,3028.9,3028.8,0.616504]
[1764199464842,0.002,3028.9,3028.8,2.09278817]
[1764199465445,0.002,3028.9,3028.8,6.12001989]
[1764199465846,1.1307,3028.9,3028.8,5.71151589]
[1764199466724,1.1307,3028.9,3028.8,11.604842]
[1764199466919,1.1307,3028.9,3028.8,3.30163761]
[1764199467449,1.1307,3028.9,3028.8,4.02723172]
[1764199469921,1.1307,3028.9,3028.8,3.30163761]
[1764199470527,1.1307,3028.9,3028.6,7.32930539]
[1764199470761,0.4875,3028.8,3028.6,7.32930539]
[1764199470923,0.4541,3028.7,3028.6,4.02744975]
[1764199471123,0.9416,3028.7,3028.6,4.02744975]
[1764199476236,0.9436,3028.7,3028.6,4.02744975]
[1764199478075,0.4561,3028.7,3028.6,9.92077586]
[1764199478373,0.4561,3028.7,3028.6,11.26384912]
[1764199478571,0.002,3028.7,3028.6,11.26384912]
[1764199479665,0.002,3028.7,3028.6,11.26684912]
[1764199480837,0.9436,3028.7,3028.6,11.26384912]
[1764199482669,0.4561,3028.7,3028.6,11.26384912]
[1764199484167,0.9436,3028.7,3028.6,11.26384912]
[1764199484535,0.9436,3028.7,3028.6,5.37052301]
[1764199485255,0.9436,3028.7,3028.6,3.30185564]
[1764199485664,0.9436,3028.7,3028.5,3.3019131]
[1764199485961,0.9801,3028.6,3028.5,3.3019131]
[1764199486279,1.28929279,3028.6,3028.5,3.3019131]
[1764199487581,1.28929279,3028.6,3028.3,0.001]
[1764199487761,0.4901,3028.4,3028.3,0.001]
[1764199488077,0.79929279,3028.4,3028.3,0.001]
[1764199488382,1.28929279,3028.4,3028.3,0.001]
[1764199493358,0.9801,3028.4,3028.3,0.001]
[1764199496963,1.2885403,3028.4,3028.3,0.001]
[1764199497161,0.9801,3028.4,3028.3,0.001]
[1764199500402,1.2884745,3028.4,3028.3,0.001]
[1764199500624,4.5905482,3028.4,3028.3,0.001]
[1764199500901,4.5905482,3028.4,3027.1,0.001]
[1764199500902,1.62119811,3028.1,3027.1,0.001]
[1764199501068,0.4901,3027.3,3027.1,0.001]
[1764199501270,0.4901,3027.3,3026.5,0.001]
[1764199501271,0.7984745,3027.2,3026.5,0.001]
[1764199501592,0.4901,3027.0,3026.5,3.30514014]
[1764199501796,0.6736,3026.9,3026.5,3.30514014]
[1764199502170,1.1636,3026.9,3026.5,3.30514014]
[1764199502366,1.1636,3026.9,3026.5,0.001]
[1764199509593,1.1656,3026.9,3026.5,0.001]
[1764199510077,1.3736,3026.9,3026.5,0.001]
[1764199515208,1.68090588,3026.9,3026.5,0.001]
[1764199517579,0.002,3026.9,3026.8,0.013]
[1764199518316,0.002,3026.9,3026.8,0.025]
[1764199518702,0.002,3026.9,3026.8,0.86680411]
[1764199518907,0.002,3026.9,3026.8,0.85480411]
[1764199519411,0.002,3026.9,3026.8,4.15862332]
[1764199519617,0.002,3026.9,3026.8,4.17062332]
[1764199519815,0.002,3026.9,3026.8,4.89621743]
[1764199521519,0.002,3026.9,3026.8,5.30172143]
[1764199523416,0.002,3027.3,3027.2,0.405504]
[1764199523585,0.002,3027.3,3027.2,8.45585061]
[1764199523787,0.002,3027.3,3027.2,8.67585061]
[1764199524483,0.002,3027.3,3027.2,8.66385061]
[1764199525119,0.002,3027.3,3027.2,8.67585061]
[1764199525522,0.002,3027.3,3027.2,11.97923327]
[1764199525836,0.002,3027.3,3027.2,11.96723327]
[1764199526021,0.002,3027.3,3027.2,11.97923327]
[1764199527821,0.002,3027.3,3027.2,12.70482738]
[1764199530500,0.002,3027.3,3027.2,10.92976375]
[1764199531224,0.002,3027.3,3027.2,10.91776375]
[1764199533028,0.002,3027.3,3027.2,10.92976375]
[1764199533821,0.458,3027.3,3027.2,3.67428224]
[1764199534006,0.9361,3027.3,3027.2,9.19576606]
[1764199535619,0.9361,3027.3,3027.1,3.30349179]
[1764199535819,0.9361,3027.3,3026.9,3.30371006]
[1764199535820,0.9341,3027.2,3026.9,3.30371006]
[1764199536139,0.6415,3026.9,3026.8,0.001]
[1764199536441,0.6415,3026.9,3026.8,5.8933834]
[1764199536637,1.1196,3026.9,3026.8,5.8933834]
[1764199538541,1.1196,3026.9,3026.8,0.001]
[1764199539344,0.002,3027.3,3026.8,0.001]
[1764199539345,0.002,3027.3,3026.8,0.013]
[1764199539644,0.4801,3027.3,3026.8,0.013]
[1764199539831,0.4801,3027.3,3026.8,0.001]
[1764199540812,0.4801,3027.3,3026.8,9.91245763]
[1764199544555,0.4801,3027.3,3026.8,6.60863842]
[1764199546855,0.4586,3026.9,3026.8,3.30481921]
[1764199547250,0.9186,3026.9,3026.8,3.30481921]
[1764199548374,0.4586,3026.5,3026.1,0.001]
[1764199548668,7.12400064,3026.9,3026.1,0.001]
[1764199548669,0.9186,3026.4,3026.1,0.001]
[1764199548965,0.9186,3026.4,3026.3,3.30536506]
[1764199549161,0.9186,3026.4,3026.3,0.001]
[1764199552344,5.66203127,3026.4,3026.3,0.001]
[1764199552665,5.7943981,3026.4,3026.3,0.001]
[1764199553243,0.72559411,3026.3,3026.1,0.001]
[1764199553444,2.35777539,3026.3,3026.1,0.001]
[1764199553647,5.66214045,3026.3,3026.1,0.001]
[1764199555651,5.87114045,3026.3,3026.1,0.001]
[1764199558451,5.86994015,3026.3,3026.1,0.001]
[1764199559467,6.00231355,3026.3,3026.1,0.001]
[1764199560674,0.405504,3025.9,3025.0,10.0]
[1764199560983,0.6566,3025.1,3025.0,10.0]
[1764199561180,0.8656,3025.1,3025.0,10.0]
[1764199561480,1.3256,3025.1,3025.0,10.0]
[1764199566675,0.8656,3025.1,3025.0,10.0]
[1764199567071,1.3544,3025.1,3025.0,10.0]
[1764199569389,0.209,3025.1,3025.0,13.32378512]
[1764199569589,0.209,3025.1,3025.0,13.30578512]
[1764199569792,0.7004,3025.1,3025.0,10.0]
[1764199569966,1.1892,3025.1,3025.0,10.0]
[1764199572694,0.209,3025.1,3025.0,13.32378512]
[1764199572870,0.209,3025.1,3025.0,13.30578512]
[1764199573067,0.6723,3025.7,3025.0,18.29074658]
[1764199573272,0.51587873,3025.6,3025.0,18.29074658]
[1764199573571,0.30687873,3025.5,3025.0,18.29074658]
[1764199573770,0.30687873,3025.4,3025.0,18.29074658]
[1764199574081,0.209,3025.6,3025.0,18.29074658]
[1764199574271,0.209,3025.6,3025.3,0.018]
[1764199574664,0.209,3025.6,3025.3,3.32338954]
[1764199575370,0.4863,3025.4,3025.3,3.30538954]
[1764199575577,0.4863,3025.4,3025.2,3.30552701]
[1764199575778,0.9664,3025.3,3025.1,3.30562436]
[1764199576187,0.4863,3025.2,3025.1,3.30562436]
[1764199577394,0.209,3025.6,3025.1,6.6113002]
[1764199577587,0.78806807,3025.5,3025.1,6.6113002]
[1764199577787,0.30796807,3025.4,3025.1,6.6113002]
[1764199577984,0.30796807,3025.3,3025.1,6.6113002]
[1764199578294,0.30829381,3025.2,3025.1,3.30562436]
[1764199578671,0.30829381,3025.2,3025.1,4.98476459]
[1764199578871,0.30829381,3025.2,3025.1,4.96676459]
[1764199579196,0.30829381,3025.2,3025.1,3.30562436]
[1764199579774,0.79459381,3025.2,3025.1,3.30562436]
[1764199580594,0.79459381,3025.2,3025.0,13.30677792]
[1764199580595,7.88596143,3025.2,3025.0,10.001]
[1764199580797,1.48369381,3025.1,3025.0,10.001]
[1764199582200,2.19539387,3025.1,3025.0,10.001]
[1764199582775,5.50106971,3025.1,3025.0,9.78592602]
[1764199586508,6.63216782,3025.1,3025.0,9.46328813]
[1764199586686,7.62535291,3025.1,3025.0,9.46328813]
[1764199586887,8.51551307,3025.1,3025.0,9.03306361]
[1764199589706,7.62535291,3025.1,3025.0,9.03306361]
[1764199589875,8.81454538,3025.1,3025.0,9.03306361]
[1764199590077,7.62535291,3025.1,3025.0,9.03306361]
[1764199590710,7.72514117,3025.1,3025.0,9.03306361]
[1764199591279,7.62535291,3025.1,3025.0,9.03306361]
[1764199591482,8.81454538,3025.1,3025.0,9.03306361]
[1764199591909,8.91433364,3025.1,3025.0,9.03306361]
[1764199592111,8.81454538,3025.1,3025.0,9.03306361]
[1764199592515,8.91433364,3025.1,3025.0,9.03306361]
[1764199593013,8.91433364,3025.1,3025.0,8.60278793]
[1764199593582,8.81454538,3025.1,3025.0,8.60278793]
[1764199593779,8.91433364,3025.1,3025.0,8.60278793]
[1764199594208,7.72514117,3025.1,3025.0,8.60278793]
[1764199594409,7.72424695,3025.1,3025.0,8.60278793]
[1764199595210,14.06424695,3025.1,3025.0,8.60278793]
[1764199596383,15.25343942,3025.1,3025.0,8.60278793]
[1764199596581,14.06424695,3025.1,3025.0,8.28007186]
[1764199597494,13.96445869,3025.1,3025.0,8.28007186]
[1764199597694,14.06424695,3025.1,3025.0,8.06492779]
[1764199598313,14.06624695,3025.1,3025.0,8.06492779]
[1764199600087,14.9538075,3025.1,3025.0,8.06492779]
[1764199600482,14.85401924,3025.1,3025.0,8.06492779]
[1764199601325,13.96645869,3025.1,3025.0,8.06492779]
[1764199601490,14.06624695,3025.1,3025.0,8.06492779]
[1764199601685,13.96645869,3025.1,3025.0,8.06492779]
[1764199601912,14.9538075,3025.1,3025.0,8.06492779]
[1764199602188,14.8538079,3025.1,3025.0,8.06492779]
[1764199602590,13.96624735,3025.1,3025.0,8.06492779]
[1764199603617,20.86249266,3025.1,3025.0,8.06492779]
[1764199603815,20.7627044,3025.1,3025.0,8.06492779]
[1764199604120,20.86217915,3025.1,3025.0,8.06492779]
[1764199604291,21.16412458,3025.1,3025.0,8.06492779]
[1764199604489,19.97493211,3025.1,3025.0,8.06492779]
[1764199605220,21.16412458,3025.1,3025.0,8.06492779]
[1764199605519,13.80769594,3025.1,3025.0,8.06492779]
[1764199606204,13.80769594,3025.1,3024.6,0.001]
[1764199606205,0.72559411,3025.0,3024.6,0.001]
[1764199606516,7.72789461,3024.7,3024.6,0.001]
[1764199606814,9.94313145,3024.7,3024.6,0.001]
[1764199607007,9.57935189,3024.7,3024.6,0.001]
[1764199607191,9.37035189,3024.7,3024.6,0.001]
[1764199607391,3.67045539,3024.7,3024.6,0.001]
[1764199607831,0.50529226,3024.4,3024.3,0.001]
[1764199607991,0.405504,3024.3,3022.6,3.30840997]
[1764199608190,0.405504,3023.9,3022.9,0.02]
[1764199608396,0.405504,3023.7,3022.7,0.68169214]
[1764199608699,0.72559411,3023.4,3022.3,0.02]
[1764199608914,0.51708247,3023.3,3022.2,0.02]
[1764199609101,0.30808247,3023.2,3022.2,0.02]
[1764199609421,0.30808247,3023.1,3022.2,0.02]
[1764199609627,0.30808247,3023.0,3022.2,0.02]
[1764199609826,0.51708247,3022.9,3022.4,3.3086289]
[1764199610032,0.30808247,3022.8,3022.4,3.3086289]
[1764199610239,0.209,3022.9,3022.8,0.02]
[1764199610396,0.51708076,3022.9,3022.8,0.02]
[1764199613021,3.8251624,3022.9,3022.8,0.02]
[1764199613795,0.51708076,3022.9,3022.8,0.02]
[1764199615531,0.51708076,3022.9,3022.8,0.021]
[1764199616525,0.51708076,3022.9,3022.8,0.041]
[1764199619617,0.51708076,3022.9,3022.8,0.021]
[1764199620355,0.51708076,3022.9,3022.8,0.001]
[1764199620847,0.51708076,3022.9,3022.8,0.021]
[1764199622239,3.30695465,3024.0,3022.8,0.021]
[1764199622240,0.4911,3024.1,3022.8,6.99032044]
[1764199622445,3.82389666,3024.0,3023.3,0.02]
[1764199622743,1.03354451,3023.9,3023.3,0.02]
[1764199622936,0.3079504,3023.8,3022.8,3.30918901]
[1764199623124,0.4969,3023.4,3022.8,0.001]
[1764199623326,0.5169504,3023.3,3022.8,0.001]
[1764199623646,0.3079504,3023.2,3022.8,0.001]
[1764199623943,0.3079504,3023.1,3022.8,0.021]
[1764199624144,0.3079504,3023.0,3022.8,0.001]
[1764199624321,4.00775311,3023.3,3022.8,0.001]
[1764199624523,0.79911362,3023.2,3022.8,0.001]
[1764199624827,0.30801362,3023.1,3022.8,0.001]
[1764199625016,0.30801362,3023.0,3022.8,0.001]
[1764199625222,0.51701362,3022.9,3022.8,0.001]
[1764199625643,0.51701362,3022.9,3022.8,0.021]
[1764199625846,0.51703628,3022.9,3022.8,0.001]
[1764199630028,0.51703628,3022.9,3022.8,0.021]
[1764199630536,0.98763628,3022.9,3022.8,0.001]
[1764199631231,0.51703628,3022.9,3022.8,0.001]
[1764199633037,4.29571792,3022.9,3022.8,0.001]
[1764199633233,0.98763628,3022.9,3022.8,0.001]
[1764199633758,0.30803628,3022.9,3022.8,5.95550639]
[1764199633927,0.30803628,3022.9,3022.8,0.041]
[1764199634355,0.30803628,3022.9,3022.8,3.32919108]
[1764199634939,0.30803628,3022.9,3022.8,9.24369747]
[1764199635257,0.30803628,3022.9,3022.8,9.26369747]